Cogmind - Beta 13 @@@ ROGUE MODE // 2024.03.29 @ 21:49:00 Player: GR4C3 Result: Destroyed by G-47 Trooper with Particle Gun Performance ------------- Evolutions (2) 1000 Regions Visited (3) 600 Robots Destroyed (38) 190 Value Destroyed (974) 974 Prototype IDs (2) 40 Alien Tech Used (0) 0 Bonus (13) 13 TOTAL SCORE: 2817 Bonus ------- High Alert Combat Kills 13 Cogmind --------- Core Integrity 0/550 Matter 200/450 Energy 160/160 System Corruption 0% Temperature Cool (9) Movement Walking (260) Ox2 Location -8/Materials Parts ------- > --- POWER (2) -------- Light Nuclear Core > --- PROPULSION (3) --- Aluminum Leg > --- UTILITY (4) ------ Medium Storage Unit Compact Matter Pod Hacking Suite > --- WEAPON (2) ------- Heavy Assault Rifle Assault Cannon > --- INVENTORY (10) --- Light Ion Engine Nuclear Core Aluminum Leg Titanium Leg Signal Interpreter Improved Terrain Scan Processor Matter Filter Peak State ------------ > --- POWER ------------ Heavy Ion Engine Light Nuclear Core > --- PROPULSION ------- Titanium Leg > --- UTILITY ---------- Medium Storage Unit Compact Matter Pod Visual Processing Unit Hacking Suite > --- WEAPON ----------- Improved Medium Laser Assault Cannon > --- INVENTORY -------- Light Ion Engine Aluminum Leg Aluminum Leg Signal Interpreter Improved Terrain Scan Processor High-powered Tractor Beam Mini Grenade Launcher [Rating: 25] Favorites ----------- Power Heavy Ion Engine Engine Heavy Ion Engine Power Core Light Nuclear Core Propulsion Aluminum Leg Treads Improved Treads Leg Aluminum Leg Utility Medium Storage Unit Device High-powered Tractor Beam Storage Medium Storage Unit Processor Visual Processing Unit Hackware Hacking Suite Weapon Mini Grenade Launcher Energy Gun EM Pulse Gun Energy Cannon Ion Cannon Ballistic Gun Assault Rifle Ballistic Cannon Assault Cannon Launcher Mini Grenade Launcher Build | -11 -10 -9 -8 ------- Run | Yrd Mat Mat Mat Slots Evolved 4 | . . 2 2 Power 1 | . . . 1 Propulsion 1 | . . 1 . Utility 2 | . . 1 1 Weapon . | . . . . Parts Attached 52 | 7 11 15 19 Power 12 | 2 1 2 7 Engine 8 | 2 1 2 3 Core 4 | . . . 4 Reactor . | . . . . Propulsion 14 | 2 5 3 4 Treads 3 | . 3 . . Leg 11 | 2 2 3 4 Wheel . | . . . . Hover . | . . . . Flight . | . . . . Utility 7 | 1 2 2 2 Device 1 | . . . 1 Storage 4 | 1 1 1 1 Processor 1 | . 1 . . Hackware 1 | . . 1 . Protection . | . . . . Artifact . | . . . . Weapon 19 | 2 3 8 6 Energy Gun 7 | 1 1 3 2 Energy Cannon 1 | . . . 1 Ballistic Gun 4 | 1 . 2 1 Ballistic Cannon 1 | . . . 1 Launcher 6 | . 2 3 1 Special Weapon . | . . . . Impact Weapon . | . . . . Slashing Weapon . | . . . . Piercing Weapon . | . . . . Special Melee Weapon . | . . . . Unidentified Prototypes 2 | . . 2 . Parts Lost 18 | . . 9 9 Power 5 | . . 3 2 Propulsion 7 | . . 3 4 Utility 1 | . . . 1 Weapon 5 | . . 3 2 Highest Loss Streak 4 | . . 4 4 To Critical Strikes 1 | . . 1 . Average Slot Usage (%) 85 | . 95 87 71 Engine 9 | . 14 10 4 Core 1 | . . . 6 Leg 22 | . 26 23 16 Device 1 | . . . 4 Storage 12 | . 14 11 13 Processor 8 | . 10 11 4 Hackware 7 | . . 10 9 Energy Gun 9 | . 17 8 2 Ballistic Gun 3 | . 7 2 . Ballistic Cannon 1 | . . . 5 Launcher 5 | . 3 9 3 Naked Turns . | . . . . Heaviest Build 33 | 14 19 22 33 Greatest Support 46 | 20 46 30 30 Greatest Overweight (x) 5 | 1 5 5 2 Average Overweight (x) . | . . . . Largest Inventory Capacity 10 | 8 10 10 10 Average Capacity 9 | 7 9 10 10 Most Carried 10 | 5 10 10 10 Average Carried 6 | 1 5 7 8 Final Capacity 10 | 8 10 10 10 Final Carried 9 | 1 9 8 7 Class Distribution -------------------- 64% | Mutant 35% | Scavenger-Mutant Dominant Class ---------------- Mutant | -10/Materials Scavenger-Mutant | -9/Materials Mutant | -8/Materials Resources | -11 -10 -9 -8 ----------- Run | Yrd Mat Mat Mat Matter Collected 1017 | 198 144 145 530 Remotely 309 | . . . 309 Salvage Created 964 | . 249 295 420 Parts 69 | . 23 23 23 Haulers Intercepted 2 | . . 1 1 Recyclers Shooed 3 | . 1 1 1 Parts Field Recycled . | . . . . Retrieved Matter . | . . . . Parts Self-Destructed . | . . . . Prevented . | . . . . Kills | -11 -10 -9 -8 ------- Run | Yrd Mat Mat Mat Combat Hostiles Destroyed 27 | . 6 13 8 Guns 10 | . 4 3 3 Cannons 5 | . . . 5 AOE 12 | . 2 10 . Classes Destroyed 9 | . 5 2 2 Worker 1 | . . . 1 Builder 2 | . 1 1 . Hauler 2 | . . 1 1 Recycler 1 | . . . 1 Operator 2 | . 1 . 1 Watcher 3 | . 3 . . Swarmer 10 | . 2 6 2 Grunt 13 | . 4 4 5 Sentry 4 | . . 3 1 Best Kill Streak 4 | . 3 4 3 Combat Bots Only 3 | . 2 3 2 Max Kills in Single Turn 2 | . 1 2 1 Gunslinging . | . . . . Exploded 2 | . 1 2 . Melee . | . . . . Uniques/NPCs Destroyed . | . . . . Combat | -11 -10 -9 -8 -------- Run | Yrd Mat Mat Mat Hostile Shots Fired 228 | . 25 107 96 Missed 73 | . 9 38 26 Damage Taken 2785 | . 218 1004 1563 Core 892 | . 63 270 559 Absorbed by Shields . | . . . . Core Remaining (%) 68 | 100 74 32 . Volleys Fired 124 | . 27 35 62 Largest 2 | . 2 2 2 Hottest 112 | . 80 86 112 Shots Fired 201 | . 52 62 87 Gun 132 | . 49 44 39 Cannon 47 | . . . 47 Launcher 22 | . 3 18 1 Special . | . . . . Kinetic 69 | . 14 12 43 Thermal 70 | . 10 17 43 Explosive 22 | . 3 18 1 Electromagnetic 40 | . 25 15 . Robot Hit Streak 10 | . 4 10 6 Robot Miss Streak 6 | . 4 6 4 Penetration Max . | . . . . Secondary Targets 1 | . . . 1 Max Gunslinging Chain 1 | . . . 1 Shots Hit Robots 115 | . 26 35 54 Core Hits 64 | . 15 28 21 Critical Kills . | . . . . Critical Parts Destroyed . | . . . . Critical Strikes 2 | . 1 1 . Burn 1 | . . 1 . Corrupt 1 | . 1 . . Melee Attacks . | . . . . Impact . | . . . . Slashing . | . . . . Piercing . | . . . . Sneak Attacks . | . . . . Combat Hostiles . | . . . . Follow-up Attacks . | . . . . Damage Inflicted 3142 | . 592 1266 1284 Guns 1089 | . 353 334 402 Cannons 757 | . . . 757 Explosions 1262 | . 239 916 107 Melee . | . . . . Ramming 34 | . . 16 18 Kinetic 795 | . 62 93 640 Thermal 831 | . 136 176 519 Explosive 1182 | . 159 916 107 Electromagnetic 300 | . 235 65 . Impact . | . . . . Slashing . | . . . . Piercing . | . . . . Highest Corruption . | . . . . Average Corruption . | . . . . Corruption Purged . | . . . . Corruption Blocked . | . . . . Overload Shots . | . . . . Overflow Damage 46 | . . 8 38 Projectiles 34 | . . . 34 Explosions 12 | . . 8 4 Melee . | . . . . Knockbacks 3 | . . . 3 Impact . | . . . . Kinetic 2 | . . . 2 Secondary 1 | . . . 1 Self-Inflicted Damage 157 | . 27 130 . Shots 5 | . 1 4 . Rammed . | . . . . Targets Rammed 8 | . . 3 5 Kicked 8 | . . 3 5 Crushed . | . . . . Highest Temperature 498 | . 75 114 498 Average Temperature 83 | . 30 36 125 Received Heat Transfer 867 | . 93 378 396 Effects 3 | . . . 3 Energy Bleed 2 | . . . 2 Short Circuit 1 | . . . 1 Siege Activations . | . . . . Robots Corrupted . | . . . . Combat Hostiles . | . . . . Parts Fried 1 | . 1 . . Impact Corruptions 2 | . . . 2 Robots Melted . | . . . . Combat Hostiles . | . . . . Parts Melted . | . . . . Heat Transferred 1829 | . 275 518 1036 Parts Sabotaged . | . . . . Parts Stolen . | . . . . Parts Stripped . | . . . . Power Chain Reactions 2 | . 2 . . Alert | -11 -10 -9 -8 ------- Run | Yrd Mat Mat Mat Peak Influence 471 | . 171 471 290 Initial 79 | . . 27 79 Average 144 | . 52 222 129 Maximum Alert Level 2 | . . 2 1 Low Security (%) 70 | 100 100 39 87 Level 1 26 | . . 54 12 Level 2 2 | . . 6 . Level 3 . | . . . . Level 4 . | . . . . Level 5 . | . . . . High Security . | . . . . Max Security . | . . . . Squads Dispatched 3 | . 1 . 2 Investigation . | . . . . Extermination . | . . . . Reinforcement 3 | . 1 . 2 Assault . | . . . . Garrison . | . . . . Intercept . | . . . . Searches Triggered . | . . . . Construction Impeded . | . . . . Haulers Reinforced . | . . . . Active Scanning Responses . | . . . . Cargo Convoy Interrupts . | . . . . Stealth | -11 -10 -9 -8 --------- Run | Yrd Mat Mat Mat Distress Signals 3 | . 1 1 1 Communications Jammed . | . . . . Distress Signals . | . . . . Times Spotted 47 | . 13 16 18 Peak Tracking Total 6 | . 3 5 6 Tactical Retreats 3 | . 1 1 1 Traps | -11 -10 -9 -8 ------- Run | Yrd Mat Mat Mat Traps Triggered . | . . . . Indirectly . | . . . . Trap Hack Attempts . | . . . . Triggered . | . . . . Disarmed . | . . . . Reprogrammed . | . . . . Reused . | . . . . Traps Extracted . | . . . . Installed . | . . . . Triggered . | . . . . Machines | -11 -10 -9 -8 ---------- Run | Yrd Mat Mat Mat Machines Disabled 6 | . . 3 3 Max in Single Turn 1 | . . 1 1 Machines Repaired . | . . . . Machines Dismantled . | . . . . Machines Sabotaged . | . . . . Overloaded Fab Kills . | . . . . Hacking | -11 -10 -9 -8 --------- Run | Yrd Mat Mat Mat Machines Accessed 9 | . 3 5 1 Terminals 7 | . 2 4 1 Fabricators . | . . . . Repair Stations . | . . . . Recycling Units 2 | . 1 1 . Scanalyzers . | . . . . Garrison Access . | . . . . Total Hacks 12 | . 3 8 1 Successful 8 | . 3 5 . Failed 4 | . . 3 1 Catastrophic . | . . . . Database Lockouts . | . . . . Manual . | . . . . Terminals 8 | . 2 5 1 Fabricators . | . . . . Repair Stations . | . . . . Recycling Units 4 | . 1 3 . Scanalyzers . | . . . . Garrison Access . | . . . . Terminal Hacks 4 | . 2 2 . Record 2 | . 1 1 . Locate Traps 1 | . 1 . . Dispatch Records 1 | . . 1 . Fabricator Hacks . | . . . . Repair Station Hacks . | . . . . Recycling Unit Hacks 4 | . 1 3 . Report Inventory 2 | . 1 1 . Retrieve Matter 1 | . . 1 . Retrieve Components 1 | . . 1 . Scanalyzer . | . . . . Garrison Access Hacks . | . . . . Unauthorized Hacks . | . . . . Terminals . | . . . . Fabricators . | . . . . Repair Stations . | . . . . Recycling Units . | . . . . Scanalyzers . | . . . . Garrison Access . | . . . . Data Cores Recovered 1 | . 1 . . Used . | . . . . Hacking Detections 2 | . 1 1 . Full Trace Events 1 | . . 1 . Feedback Events . | . . . . Feedback Blocked . | . . . . Robot Schematics Acquired . | . . . . Robots Built . | . . . . Authchips . | . . . . Time . | . . . . Total Robot Build Rating . | . . . . Part Schematics Acquired . | . . . . Parts Built . | . . . . Authchips . | . . . . Time . | . . . . Total Part Build Rating . | . . . . Parts Repaired . | . . . . Time . | . . . . Parts Recycled . | . . . . Recycled Matter . | . . . . Retrieved Matter . | . . . . Retrieved Components 10 | . . 10 . Parts Scanalyzed . | . . . . Part Schematics Acquired . | . . . . Parts Damaged . | . . . . Bothacking | -11 -10 -9 -8 ------------ Run | Yrd Mat Mat Mat Used RIF Installer . | . . . . Robots Hacked . | . . . . Non-combat . | . . . . Combat . | . . . . Robot Hacks Applied . | . . . . Relay Couplers Released . | . . . . Fabnet Peak Effective % . | . . . . Robots Rewired . | . . . . Allies Hacked . | . . . . Hacks Repelled . | . . . . Allies | -11 -10 -9 -8 -------- Run | Yrd Mat Mat Mat Total Allies . | . . . . Largest Group . | . . . . Highest-Rated Group . | . . . . Highest-Rated Ally . | . . . . Total Orders . | . . . . Ally Attacks . | . . . . Total Damage . | . . . . Kills . | . . . . Allies Corrupted . | . . . . Allies Melted . | . . . . Intel | -11 -10 -9 -8 ------- Run | Yrd Mat Mat Mat Robot Analysis Total . | . . . . Derelict Logs Recovered . | . . . . Drone Launches . | . . . . Drone Recoveries . | . . . . Exploration | -11 -10 -9 -8 ------------- Run | Yrd Mat Mat Mat Turns Passed 2052 | 61 572 885 534 Spaces Moved 1135 | 43 373 487 232 Core 29 | 9 3 17 . Treads 6 | . 6 . . Legs 1100 | 34 364 470 232 Wheels . | . . . . Hover . | . . . . Flight . | . . . . Fastest Speed 50 | 50 120 120 120 Average Speed 138 | 110 122 152 141 Slowest Speed 300 | 190 300 300 260 Overloaded Moves . | . . . . Propulsion Burnouts . | . . . . Robots Hopped . | . . . . Cave-ins Triggered . | . . . . Exploration Rate (%) 28 | 3 60 33 18 Regions Visited 3 Branch Regions . Pre-discovered Areas . | . . . . Known Exits Taken . | . . . . Unknown Exits Taken 3 | 1 1 1 . Scrap Searched . | . . . . Spaces Dug . | . . . . Terrain Destroyed 173 | . 20 138 15 Melee . | . . . . Projectile 4 | . . . 4 AOE 169 | . 20 138 11 Terrain Rammed . | . . . . Walls Destroyed . | . . . . Machines Disabled . | . . . . Actions | -11 -10 -9 -8 --------- Run | Yrd Mat Mat Mat Total 1409 | 55 440 564 350 Wait 20 | . . 9 11 Move 1132 | 42 372 486 232 Hop . | . . . . Pick Up 50 | 6 19 10 15 Fast Attach 1 | 1 . . . Attach 34 | 5 5 10 14 Detach 4 | . . 2 2 Swap 18 | 1 6 6 5 Drop 18 | . 11 3 4 Fire 124 | . 27 35 62 Melee . | . . . . Ram . | . . . . Kick 8 | . . 3 5 Crush . | . . . . Escape Stasis . | . . . . Rewire . | . . . . Trap . | . . . . Miscellaneous . | . . . . Route ------- -11/Scrapyard -10/Materials (discovered 2 exits: *Mat / [*Min]) -9/Materials -8/Materials History --------- Turn | Location | Event 6 | -11/Scrapyard | Discovered new exit (range 14) 62 | -11/Scrapyard | Entered Materials 256 | -10/Materials | Discovered new exit (range 12) 307 | -10/Materials | Build established: Mutant 566 | -10/Materials | Discovered new exit (range 16) 634 | -10/Materials | Entered another Materials area 634 | -9/Materials | Evolved 2 slots: Propulsion x1, Utility x1 792 | -9/Materials | Discovered new exit (range 8) 1012 | -9/Materials | Lost 4 parts (1p2n1w) 1132 | -9/Materials | Lost 3 parts (2p1w) 1405 | -9/Materials | Build established: Scavenger-Mutant 1440 | -9/Materials | Core integrity fell below 50% 1519 | -9/Materials | Entered another Materials area 1519 | -8/Materials | Evolved 2 slots: Power x1, Utility x1 1763 | -8/Materials | Lost 3 parts (1p1n1w) 1977 | -8/Materials | Core integrity fell below 50% 2031 | -8/Materials | Core integrity fell below 20% 2053 | -8/Materials | Destroyed by G-47 Trooper with Particle Gun Last Messages --------------- 02045_ K-01 Serf collects debris. 02045_ U-05 Engineer builds a Wall. 02046_ U-05 Engineer lays Concrete. 02047_ Penetrated by Slug. 02047_ Aluminum Leg destroyed. 02047_ K-01 Serf collects debris. 02047_ U-05 Engineer lays Concrete. 02047_ U-05 Engineer builds a Wall. 02048_ U-05 Engineer lays Concrete. 02048_ U-05 Engineer builds a Wall. 02048_ U-05 Engineer lays Concrete. 02049_ K-01 Serf collects debris. 02049_ U-05 Engineer lays Concrete. 02050_ U-05 Engineer builds a Wall. 02050_ U-05 Engineer lays Concrete. 02051_ K-01 Serf collects debris. 02051_ U-05 Engineer lays Concrete. 02052_ G-47 Trooper knocked back. 02052_ U-05 Engineer lays Concrete. 02053_ K-01 Serf collects debris. Map ----- +----------------------------------------------------+ | ???????#????????????????????????????????????# # | | ?????## ??????????????????????????????????# # | | ?????? ??????????????????????????????????# + | | ?????? ??????????????????????????????????# # | | ??????? ??????????????????????????????????### # | | ??????? ???????????????????????????????????# # | | ???????# ???????????????????????????????????# # | | ???????# ???????????????????????????????????# ## | | ???????# ???????????????????????????????????# #? | | ???????# ????????????????????????????######## #? | | ???????# ????????????????????????????# # # | | ???????# ??????????#?????????????????# """ # # | | ??????## ##?????###;###??????????????# """ + + | | ??????# ####### #??????????????# """ # # | | ??????# #??????????????# * # ## | | ??????# #??????????????# !# | | ??????# #????????################# | | ??????# ####### * ###??????# #?# | | ??????#######????#### ###????# """ #?# | | ????????????????## %![ #????# """ #?# | | ????????????????#; *w ##???# """ #?# | | ????????????????# % H u #???# ""T"" #?# | | ???????????????## # #???# """"" #?# | | ???????????????# u u# #??########+#######?# | | ???????????????## k k # #??###### #????## | | ???????????????# @ ###### ######! | | ???????????????# % u = != | | ???????????????##########g%###### ###### | | ????????????? g; ##??####### #?#### | | ????????????# ##???????##### ###?# | | ????????????# ] ##???????????## #???# !!! | | ????????????# #?????????????# #???#!!!! | | ????????????# #?????????????# #???##### | | ?????????????######+######?????????????# #???????? | | ????????????????? ????????????????????# #???????? | | ???????????????? ?????????????????????# #???????? | | ??????????????? ???????????????????????# #???????? | | ??????????????????????????????????????? ????????? | | ??????????????????????????????????????? ????????? | | ??????????????????????????????????????? ????????? | | ??????????????????????????????????????? ?????????? | | ?????????????????????????????????????????????????? | | ?????????????????????????????????????????????????? | | ?????????????????????????????????????????????????? | | ?????????????????????????????????????????????????? | | ?????????????????????????????????????????????????? | | ?????????????????????????????????????????????????? | | ?????????????????????????????????????????????????? | | ?????????????????????????????????????????????????? | | ?????????????????????????????????????????????????? | +----------------------------------------------------+ Best States ------------- Heat Dissipation 31 Energy Generation 23 Energy Capacity 430 Matter Stores 300 Matter Capacity 450 Sight Range 18 Terrain Scan Density 10 Evasion (%) 55 Recoil Reduction 2 Offensive Hacking 10 Item Schematics ----------------- None Robot Schematics ------------------ None Fabricated ------------ Nothing Alien Tech Used ----------------- None Achievements -------------- Use The Force Challenges ------------ None Game ------ Seed TerrabombRagnarokTrap Manual? 0 Play Time 00:32:28 Cumulative 30.2 hours Start 2024.03.29 @ 21:16:27 End 2024.03.29 @ 21:49:00 Sessions 1 Manual Loads 0 Difficulty Rogue Special Mode None Game No. 22 Rogue 8 Adventurer 14 Explorer 0 Win Type - Total 0 Types 0/0/0/0/0/0/0/0/0 Lore% 16 Gallery% 28 Achievement% 18 Wizard Run 0 Options --------- Layout 2 ASCII 0 Keyboard 0 Movement Mouse Keybinds 0 Fullscreen 2 Font 36/Smallcaps Map View 53x54 Zoom Use 0% Tactical HUD 1 Map Filters NONE Filters NONE Steam 1 RUN: 5b3e5f68-0c20-430f-b0fd-fae17412d06c